Workbook

Sheet Sheet1
B1: The Secant Method
B3: This graphing utility illustrates
B4: the Secant Method of root-finding
B5: for any desired function
D6: y = f(x)
B7: on any interval from x = a to x = b.
A9: Enter the function in terms of x: f(x) = | F9: x^3 - 4*x
A12: Now enter the interval for x:
C13: xMin = | D13: -3
C14: xMax = | D14: 4
B16: =IF(Sheet2!E$3*Sheet2!E$1027<0,"","This function does not change its sign on this interval") -> 
C17: =IF(Sheet2!E$3*Sheet2!E$1027<0,"","so it may not have a root on this interval") -> 
J19: The graph of the function y = f(x) = | N19: =F9 -> x^3 - 4*x
A20: Click each item below for suggestions and investigations | J20: =IF(Sheet2!K106="OK"," and its inverse ","") -> 
B21: Item 1 | K21: Interval | M21: Intercept | N21: Height
B22: Item 2 | K22: =xMin -> -3 | L22: =D14 -> 4 | M22: =Sheet2!K3 -> -1.3333333 | N22: =Sheet2!L3 -> 2.9554618
B23: Item 3 | K23: =Sheet2!G4 -> -3 | L23: =Sheet2!I4 -> -1.333333333 | M23: =Sheet2!K4 -> -1.6076660 | N23: =Sheet2!L4 -> 2.2579901
K24: =Sheet2!G5 -> -3 | L24: =Sheet2!I5 -> -1.607665999 | M24: =Sheet2!K5 -> -1.7898353 | N24: =Sheet2!L5 -> 1.4244418
K25: =Sheet2!G6 -> -3 | L25: =Sheet2!I6 -> -1.789835326 | M25: =Sheet2!K6 -> -1.8947892 | N25: =Sheet2!L6 -> 0.7450000
K26: =Sheet2!G7 -> -3 | L26: =Sheet2!I7 -> -1.894789219 | M26: =Sheet2!K7 -> -1.9470840 | N26: =Sheet2!L7 -> 0.4053362
A27: To access/download all the DIGMath Apps for Calculus | K27: =Sheet2!G8 -> -3 | L27: =Sheet2!I8 -> -1.947084044 | M27: =Sheet2!K8 -> -1.9747878 | N27: =Sheet2!L8 -> 0.1463782
A28: Click this link: | C28: DIGMath for Calculus | K28: =Sheet2!G9 -> -3 | L28: =Sheet2!I9 -> -1.974787751 | M28: =Sheet2!K9 -> -1.9846956 | N28: =Sheet2!L9 -> 0.0929276
K29: =Sheet2!G10 -> -3 | L29: =Sheet2!I10 -> -1.984695648 | M29: =Sheet2!K10 -> -1.9909469 | N29: =Sheet2!L10 -> 0.0389196
A30: Created by: Sheldon P. Gordon | K30: =Sheet2!G11 -> -3 | L30: =Sheet2!I11 -> -1.990946909 | M30: =Sheet2!K11 -> -1.9935583 | N30: =Sheet2!L11 -> 0.0389196
A31: Farmingdale State College | K31: =Sheet2!G12 -> -3 | L31: =Sheet2!I12 -> -1.993558261 | M31: =Sheet2!K12 -> -1.9961629 | N31: =Sheet2!L12 -> -0.0156479
A32: Development of this module was supported by the
A33: NSF's Division of Undergraduate Education
A34: under grants DUE-0310123 and DUE-0442160.

Sheet Sheet2
C1: n | D1: x | E1: y = f(x) | F1: Iteration | G1: xLeft | H1: yLeft | I1: xRight | J1: yRight | K1: Next x | L1: New y | M1: intercepts
E2: =Sheet1!#REF! -> 
C3: 0 | D3: =Sheet1!D13 -> -3 | E3: =x^3 - 4*x -> -15 | F3: 1 | G3: =xMin -> -3 | H3: =E3 -> -15 | I3: =Sheet1!D14 -> 4 | J3: =E1027 -> 48 | K3: =G3-H3*(I3-G3)/(J3-H3) -> -1.333333333 | L3: =LOOKUP(K3,D$3:D$1027,E$3:E$1027) -> 2.955461827 | M3: 0
C4: 1 | D4: =D3+dx -> -2.993164062 | E4: -14.84319369 | F4: 2 | G4: =IF(H3*L3<=0,G3,K3) -> -3 | H4: =IF(G4=G3,H3,L3) -> -15 | I4: =IF(G4=G3,K3,I3) -> -1.333333333 | J4: =IF(G4=G3,L3,J3) -> 2.955461827 | K4: =G4-H4*(I4-G4)/(J4-H4) -> -1.607665999 | L4: =LOOKUP(K4,D$3:D$1027,E$3:E$1027) -> 2.257990141 | M4: 0
C5: 2 | D5: -2.986328125 | E5: -14.6872266 | F5: 3 | G5: =IF(H4*L4<=0,G4,K4) -> -3 | H5: =IF(G5=G4,H4,L4) -> -15 | I5: =IF(G5=G4,K4,I4) -> -1.607665999 | J5: =IF(G5=G4,L4,J4) -> 2.257990141 | K5: =G5-H5*(I5-G5)/(J5-H5) -> -1.789835326 | L5: =LOOKUP(K5,D$3:D$1027,E$3:E$1027) -> 1.424441761 | M5: 0
C6: 3 | D6: -2.979492188 | E6: -14.53209682 | F6: 4 | G6: =IF(H5*L5<=0,G5,K5) -> -3 | H6: =IF(G6=G5,H5,L5) -> -15 | I6: =IF(G6=G5,K5,I5) -> -1.789835326 | J6: =IF(G6=G5,L5,J5) -> 1.424441761 | K6: =G6-H6*(I6-G6)/(J6-H6) -> -1.894789219 | L6: =LOOKUP(K6,D$3:D$1027,E$3:E$1027) -> 0.7449999964 | M6: 0
C7: 4 | D7: -2.97265625 | E7: -14.37780243 | F7: 5 | G7: -3 | H7: -15 | I7: -1.894789219 | J7: 0.7449999964 | K7: -1.947084044 | L7: 0.4053361639 | M7: 0
C8: 5 | D8: -2.965820312 | E8: -14.22434152 | F8: 6 | G8: -3 | H8: -15 | I8: -1.947084044 | J8: 0.4053361639 | K8: -1.974787751 | L8: 0.1463782294 | M8: 0
C9: 6 | D9: -2.958984375 | E9: -14.07171216 | F9: 7 | G9: -3 | H9: -15 | I9: -1.974787751 | J9: 0.1463782294 | K9: -1.984695648 | L9: 0.09292763472 | M9: 0
C10: 7 | D10: -2.952148438 | E10: -13.91991244 | F10: 8 | G10: -3 | H10: -15 | I10: -1.984695648 | J10: 0.09292763472 | K10: -1.990946909 | L10: 0.03891956527 | M10: 0
C11: 8 | D11: -2.9453125 | E11: -13.76894045 | F11: 9 | G11: -3 | H11: -15 | I11: -1.990946909 | J11: 0.03891956527 | K11: -1.993558261 | L11: 0.03891956527 | M11: 0
A12: delta x = | B12: =(Sheet1!D14-Sheet1!D13)/1024 -> 0.0068359375 | C12: 9 | D12: -2.938476562 | E12: -13.61879426 | F12: 10 | G12: -3 | H12: -15 | I12: -1.993558261 | J12: 0.03891956527 | K12: -1.996162855 | L12: -0.01564789563 | M12: 0
C13: 10 | D13: -2.931640625 | E13: -13.46947197
C14: 11 | D14: -2.924804688 | E14: -13.32097165
C15: 12 | D15: -2.91796875 | E15: -13.17329139 | H15: Plotting | I15: x | J15: y
C16: 13 | D16: -2.911132812 | E16: -13.02642926 | I16: =G3 -> -3 | J16: =H3 -> -15
C17: 14 | D17: -2.904296875 | E17: -12.88038336 | I17: =I3 -> 4 | J17: =J3 -> 48
C18: 15 | D18: -2.897460938 | E18: -12.73515177 | I18: =G4 -> -3 | J18: =H4 -> -15
C19: 16 | D19: -2.890625 | E19: -12.59073257 | I19: =I4 -> -1.333333333 | J19: =J4 -> 2.955461827
C20: 17 | D20: -2.883789062 | E20: -12.44712385 | I20: =G5 -> -3 | J20: =H5 -> -15
C21: 18 | D21: -2.876953125 | E21: -12.30432368 | I21: =I5 -> -1.607665999 | J21: =J5 -> 2.257990141
C22: 19 | D22: -2.870117188 | E22: -12.16233015 | I22: =K6 -> -1.894789219 | J22: 0
C23: 20 | D23: -2.86328125 | E23: -12.02114135 | I23: =I22 -> -1.894789219 | J23: =L6 -> 0.7449999964
C24: 21 | D24: -2.856445312 | E24: -11.88075535 | I24: =K7 -> -1.947084044 | J24: 0
C25: 22 | D25: -2.849609375 | E25: -11.74117025 | I25: =I24 -> -1.947084044 | J25: =L7 -> 0.4053361639
C26: 23 | D26: -2.842773438 | E26: -11.60238412 | I26: =K8 -> -1.974787751 | J26: 0
C27: 24 | D27: -2.8359375 | E27: -11.46439505 | I27: =I26 -> -1.974787751 | J27: =L8 -> 0.1463782294
C28: 25 | D28: -2.829101562 | E28: -11.32720111 | I28: =K9 -> -1.984695648 | J28: 0
C29: 26 | D29: -2.822265625 | E29: -11.19080041 | I29: =I28 -> -1.984695648 | J29: =L9 -> 0.09292763472
C30: 27 | D30: -2.815429688 | E30: -11.05519101 | I30: =K10 -> -1.990946909 | J30: 0
C31: 28 | D31: -2.80859375 | E31: -10.920371 | I31: =I30 -> -1.990946909 | J31: =L10 -> 0.03891956527
C32: 29 | D32: -2.801757812 | E32: -10.78633846 | I32: =K11 -> -1.993558261 | J32: 0
C33: 30 | D33: -2.794921875 | E33: -10.65309148 | I33: =I32 -> -1.993558261 | J33: =L11 -> 0.03891956527
C34: 31 | D34: -2.788085938 | E34: -10.52062815 | I34: =K12 -> -1.996162855 | J34: 0
C35: 32 | D35: -2.78125 | E35: -10.38894653 | I35: =I34 -> -1.996162855 | J35: =L12 -> -0.01564789563
C36: 33 | D36: -2.774414062 | E36: -10.25804473
C37: 34 | D37: -2.767578125 | E37: -10.12792081
C38: 35 | D38: -2.760742188 | E38: -9.998572874
C39: 36 | D39: -2.75390625 | E39: -9.869998991
C40: 37 | D40: -2.747070312 | E40: -9.74219725
C41: 38 | D41: -2.740234375 | E41: -9.615165733
C42: 39 | D42: -2.733398438 | E42: -9.488902523
C43: 40 | D43: -2.7265625 | E43: -9.363405704
C44: 41 | D44: -2.719726562 | E44: -9.23867336
C45: 42 | D45: -2.712890625 | E45: -9.114703573
C46: 43 | D46: -2.706054688 | E46: -8.991494427
C47: 44 | D47: -2.69921875 | E47: -8.869044006
C48: 45 | D48: -2.692382812 | E48: -8.747350392
C49: 46 | D49: -2.685546875 | E49: -8.626411669
C50: 47 | D50: -2.678710938 | E50: -8.50622592
C51: 48 | D51: -2.671875 | E51: -8.386791229
C52: 49 | D52: -2.665039062 | E52: -8.268105679
C53: 50 | D53: -2.658203125 | E53: -8.150167353
C54: 51 | D54: -2.651367188 | E54: -8.032974335
C55: 52 | D55: -2.64453125 | E55: -7.916524708
C56: 53 | D56: -2.637695312 | E56: -7.800816556
C57: 54 | D57: -2.630859375 | E57: -7.68584796
C58: 55 | D58: -2.624023438 | E58: -7.571617006
C59: 56 | D59: -2.6171875 | E59: -7.458121777
C60: 57 | D60: -2.610351562 | E60: -7.345360355
C61: 58 | D61: -2.603515625 | E61: -7.233330823
C62: 59 | D62: -2.596679688 | E62: -7.122031267
C63: 60 | D63: -2.58984375 | E63: -7.011459768
C64: 61 | D64: -2.583007812 | E64: -6.90161441
C65: 62 | D65: -2.576171875 | E65: -6.792493276
C66: 63 | D66: -2.569335938 | E66: -6.68409445
C67: 64 | D67: -2.5625 | E67: =x^3 - 4*x -> -6.576416016
C68: 65 | D68: =D67+dx -> -2.555664062 | E68: -6.469456055
C69: 66 | D69: -2.548828125 | E69: -6.363212653
C70: 67 | D70: -2.541992188 | E70: -6.257683891
C71: 68 | D71: -2.53515625 | E71: -6.152867854
C72: 69 | D72: -2.528320312 | E72: -6.048762624
C73: 70 | D73: -2.521484375 | E73: -5.945366286
C74: 71 | D74: -2.514648438 | E74: -5.842676922
C75: 72 | D75: -2.5078125 | E75: -5.740692616
C76: 73 | D76: -2.500976562 | E76: -5.63941145
C77: 74 | D77: -2.494140625 | E77: -5.53883151
C78: 75 | D78: -2.487304688 | E78: -5.438950877
C79: 76 | D79: -2.48046875 | E79: -5.339767635
C80: 77 | D80: -2.473632812 | E80: -5.241279867
C81: 78 | D81: -2.466796875 | E81: -5.143485658
C82: 79 | D82: -2.459960938 | E82: -5.046383089
C83: 80 | D83: -2.453125 | E83: -4.949970245
C84: 81 | D84: -2.446289062 | E84: -4.854245209
C85: 82 | D85: -2.439453125 | E85: -4.759206064
C86: 83 | D86: -2.432617188 | E86: -4.664850893
C87: 84 | D87: -2.42578125 | E87: -4.571177781
C88: 85 | D88: -2.418945312 | E88: -4.478184809
C89: 86 | D89: -2.412109375 | E89: -4.385870062
C90: 87 | D90: -2.405273438 | E90: -4.294231622
C91: 88 | D91: -2.3984375 | E91: -4.203267574
C92: 89 | D92: -2.391601562 | E92: -4.112976001
C93: 90 | D93: -2.384765625 | E93: -4.023354985
C94: 91 | D94: -2.377929688 | E94: -3.93440261
C95: 92 | D95: -2.37109375 | E95: -3.84611696
C96: 93 | D96: -2.364257812 | E96: -3.758496118
C97: 94 | D97: -2.357421875 | E97: -3.671538167
C98: 95 | D98: -2.350585938 | E98: -3.58524119
C99: 96 | D99: -2.34375 | E99: -3.499603271
C100: 97 | D100: -2.336914062 | E100: -3.414622494
C101: 98 | D101: -2.330078125 | E101: -3.330296941
C102: 99 | D102: -2.323242188 | E102: -3.246624696
C103: 100 | D103: -2.31640625 | E103: -3.163603842
C104: 101 | D104: -2.309570312 | E104: -3.081232463
C105: 102 | D105: -2.302734375 | E105: -2.999508642
C106: 103 | D106: -2.295898438 | E106: -2.918430462
C107: 104 | D107: -2.2890625 | E107: -2.837996006
C108: 105 | D108: -2.282226562 | E108: -2.758203358
C109: 106 | D109: -2.275390625 | E109: -2.679050602
C110: 107 | D110: -2.268554688 | E110: -2.60053582
C111: 108 | D111: -2.26171875 | E111: -2.522657096
C112: 109 | D112: -2.254882812 | E112: -2.445412514
C113: 110 | D113: -2.248046875 | E113: -2.368800156
C114: 111 | D114: -2.241210938 | E114: -2.292818106
C115: 112 | D115: -2.234375 | E115: -2.217464447
C116: 113 | D116: -2.227539062 | E116: -2.142737263
C117: 114 | D117: -2.220703125 | E117: -2.068634637
C118: 115 | D118: -2.213867188 | E118: -1.995154652
C119: 116 | D119: -2.20703125 | E119: -1.922295392
C120: 117 | D120: -2.200195312 | E120: -1.850054939
C121: 118 | D121: -2.193359375 | E121: -1.778431378
C122: 119 | D122: -2.186523438 | E122: -1.707422792
C123: 120 | D123: -2.1796875 | E123: -1.637027264
C124: 121 | D124: -2.172851562 | E124: -1.567242877
C125: 122 | D125: -2.166015625 | E125: -1.498067714
C126: 123 | D126: -2.159179688 | E126: -1.42949986
C127: 124 | D127: -2.15234375 | E127: -1.361537397
C128: 125 | D128: -2.145507812 | E128: -1.294178409
C129: 126 | D129: -2.138671875 | E129: -1.227420978
C130: 127 | D130: -2.131835938 | E130: -1.161263189
C131: 128 | D131: -2.125 | E131: =x^3 - 4*x -> -1.095703125
C132: 129 | D132: =D131+dx -> -2.118164062 | E132: -1.030738869
C133: 130 | D133: -2.111328125 | E133: -0.9663685039
C134: 131 | D134: -2.104492188 | E134: -0.9025901137
C135: 132 | D135: -2.09765625 | E135: -0.8394017816
C136: 133 | D136: -2.090820312 | E136: -0.7768015908
C137: 134 | D137: -2.083984375 | E137: -0.7147876248
C138: 135 | D138: -2.077148438 | E138: -0.6533579668
C139: 136 | D139: -2.0703125 | E139: -0.5925107002
C140: 137 | D140: -2.063476562 | E140: -0.5322439084
C141: 138 | D141: -2.056640625 | E141: -0.4725556746
C142: 139 | D142: -2.049804688 | E142: -0.4134440823
C143: 140 | D143: -2.04296875 | E143: -0.3549072146
C144: 141 | D144: -2.036132812 | E144: -0.2969431551
C145: 142 | D145: -2.029296875 | E145: -0.239549987
C146: 143 | D146: -2.022460938 | E146: -0.1827257937
C147: 144 | D147: -2.015625 | E147: -0.1264686584
C148: 145 | D148: -2.008789062 | E148: -0.07077666465
C149: 146 | D149: -2.001953125 | E149: -0.01564789563
C150: 147 | D150: -1.995117188 | E150: 0.03891956527
C151: 148 | D151: -1.98828125 | E151: 0.09292763472
C152: 149 | D152: -1.981445312 | E152: 0.1463782294
C153: 150 | D153: -1.974609375 | E153: 0.1992732659
C154: 151 | D154: -1.967773438 | E154: 0.251614661
C155: 152 | D155: -1.9609375 | E155: 0.3034043312
C156: 153 | D156: -1.954101562 | E156: 0.3546441933
C157: 154 | D157: -1.947265625 | E157: 0.4053361639
C158: 155 | D158: -1.940429688 | E158: 0.4554821597
C159: 156 | D159: -1.93359375 | E159: 0.5050840974
C160: 157 | D160: -1.926757812 | E160: 0.5541438935
C161: 158 | D161: -1.919921875 | E161: 0.6026634648
C162: 159 | D162: -1.913085938 | E162: 0.650644728
C163: 160 | D163: -1.90625 | E163: 0.6980895996
C164: 161 | D164: -1.899414062 | E164: 0.7449999964
C165: 162 | D165: -1.892578125 | E165: 0.791377835
C166: 163 | D166: -1.885742188 | E166: 0.837225032
C167: 164 | D167: -1.87890625 | E167: 0.8825435042
C168: 165 | D168: -1.872070312 | E168: 0.9273351682
C169: 166 | D169: -1.865234375 | E169: 0.9716019407
C170: 167 | D170: -1.858398438 | E170: 1.015345738
C171: 168 | D171: -1.8515625 | E171: 1.058568478
C172: 169 | D172: -1.844726562 | E172: 1.101272075
C173: 170 | D173: -1.837890625 | E173: 1.143458448
C174: 171 | D174: -1.831054688 | E174: 1.185129513
C175: 172 | D175: -1.82421875 | E175: 1.226287186
C176: 173 | D176: -1.817382812 | E176: 1.266933384
C177: 174 | D177: -1.810546875 | E177: 1.307070024
C178: 175 | D178: -1.803710938 | E178: 1.346699023
C179: 176 | D179: -1.796875 | E179: 1.385822296
C180: 177 | D180: -1.790039062 | E180: 1.424441761
C181: 178 | D181: -1.783203125 | E181: 1.462559335
C182: 179 | D182: -1.776367188 | E182: 1.500176934
C183: 180 | D183: -1.76953125 | E183: 1.537296474
C184: 181 | D184: -1.762695312 | E184: 1.573919873
C185: 182 | D185: -1.755859375 | E185: 1.610049047
C186: 183 | D186: -1.749023438 | E186: 1.645685912
C187: 184 | D187: -1.7421875 | E187: 1.680832386
C188: 185 | D188: -1.735351562 | E188: 1.715490385
C189: 186 | D189: -1.728515625 | E189: 1.749661826
C190: 187 | D190: -1.721679688 | E190: 1.783348625
C191: 188 | D191: -1.71484375 | E191: 1.816552699
C192: 189 | D192: -1.708007812 | E192: 1.849275964
C193: 190 | D193: -1.701171875 | E193: 1.881520338
C194: 191 | D194: -1.694335938 | E194: 1.913287737
C195: 192 | D195: -1.6875 | E195: =x^3 - 4*x -> 1.944580078
C196: 193 | D196: =D195+dx -> -1.680664062 | E196: 1.975399277
C197: 194 | D197: -1.673828125 | E197: 2.005747251
C198: 195 | D198: -1.666992188 | E198: 2.035625917
C199: 196 | D199: -1.66015625 | E199: 2.065037191
C200: 197 | D200: -1.653320312 | E200: 2.09398299
... 827 more rows

Sheet Defining Function
A1: Defining a Function in Excel
A3: Computers have very specific rules you must follow when defining a function. If you don't, the program will either not work at all or will work incorrectly.
A5: 1. The Variable used should be the one named in the instruction, usually x, though sometimes y, t, Q (for an angle theta),
A6: or even x and y (for a function of two variables).
A8: 2. Order of Operations: There five arithmetic operations, addition (+), subtraction (-), multiplication (*), division (/), and exponentiation or power (^). When computers see any of these operation symbols, they perform the indicated steps in a very particular order. First, the power is done. Second, products and quotients of adjacent terms is done. Third, and last, sums and differences of adjacent terms are done. So, in 10*x^3 + 5*x – 7, say with x = 2, the first pass only calculates 2^3 and ignores the multiplications and the sums and differences to calculate 2^3 = 8. The second pass looks at 10*8 + 5*2 – 7 and only does the multiplications, so it produces 80 + 10 - 7. The third pass looks at the +’s and –‘s to produce 80 + 10 – 7 = 83.
A10: 3. Parentheses If you need an operation involving more than two adjacent terms, as in Ö4^3 + 6^2, the computer would take the square root of 4 to produce 2^3 + 6^2; it would then cube the 2 and square the 6 to produce 8 + 36; and finally it would add the 8 and the 36 to get 44. If you actually wanted the square root of the entire expression, you would need to use parentheses, as in Ö(4^3 + 6^2) to tell the computer to do all the operations inside the parentheses before taking the square root. Therefore, it would calculate (4^3 + 6^2) = 64 + 36 = 100 and then take the square root of Ö100 = 10.
A12: 4. Built-In Functions Computer programs have built-in functions for most common algebraic functions. In Excel, the square root function is denoted by SQRT(…), so SQRT(100) = 10. Alternatively, you could enter it as 100^.5 or 100^(1/2); notice that parentheses are needed to have the ½ done first. The common trig functions are SIN (…), COS (…), and TAN (…), where the arguments are automatically interpreted as being in radians, not degrees. The logarithm to the base 10 is represented by LOG (…) and the logarithm with the base e, known as the natural logarithm, is LN (…). The corresponding exponential function with base e is EXP (x). If x is the variable, then each of these would be SQRT (x), SIN (x), COS (x), TAN (x), LOG (x) (for log with base 10 ), LN (x) (for log with base e ), and EXP (x).

Sheet Sheet3
